fUSD/lending_fUSD_20241231
["ID","MTS","AMOUNT","RATE_DAILY","PERIOD"]
[347270084,1735645701771,-629.55,0.00025028,60]
[347270085,1735645701809,-1104.2,0.00025028,60]
[347270086,1735645701846,-1336.88,0.00025028,60]
[347270087,1735645701884,-687.72,0.00025028,60]
[347270088,1735645701925,-1104.2,0.00025028,60]
[347270089,1735645701965,-629.68751911,0.00025028,60]
[347270090,1735645702005,-631.67,0.00025028,60]
[347270091,1735645702044,-1336.88,0.00025028,60]
[347270092,1735645702081,-1104.2,0.00025028,60]
[347270093,1735645702121,-687.72,0.00025028,60]
[347270094,1735645702162,-1336.88,0.00025028,60]
[347270095,1735645702202,-631.67,0.00025028,60]
[347270096,1735645702242,-1104.2,0.00025028,60]
[347270097,1735645702282,-687.72,0.00025028,60]
[347270098,1735645702323,-1336.88,0.00025028,60]
[347270099,1735645702363,-631.67,0.00025028,60]
[347270100,1735645702404,-1104.2,0.00025028,60]
[347270101,1735645702445,-687.72,0.00025028,60]
[347270102,1735645702488,-1336.88,0.00025028,60]
[347270103,1735645702531,-631.67,0.00025028,60]
[347270104,1735645702571,-1104.2,0.00025028,60]
[347270105,1735645702616,-687.72,0.00025028,60]
[347270106,1735645702660,-1336.88,0.00025028,60]
[347270107,1735645702702,-500.0,0.00025028,60]
[347270108,1735645702743,-631.88083261,0.00025028,60]
[347270109,1735645702788,-1104.2,0.00025028,60]
[347270110,1735645702829,-687.72,0.00025028,60]
[347270111,1735645702872,-1336.88,0.00025028,60]
[347270112,1735645702921,-500.0,0.00025028,60]
[347270113,1735645702972,-1104.2,0.00025028,60]
[347270114,1735645703021,-687.72,0.00025028,60]
[347270115,1735645703068,-1336.88,0.00025028,60]
[347270116,1735645703108,-500.0,0.00025028,60]
[347270117,1735645703153,-6796.36,0.00025028,60]
[347270118,1735645703193,-1104.2,0.00025028,60]
[347270119,1735645703420,-687.72,0.00025028,60]
[347270120,1735645703466,-1336.88,0.00025028,60]
[347270121,1735645703511,-500.0,0.00025028,60]
[347270122,1735645703558,-1104.2,0.00025028,60]
[347270123,1735645703601,-687.72,0.00025028,60]
[347270124,1735645703650,-1336.88,0.00025028,60]
[347270125,1735645703694,-500.0,0.00025028,60]
[347270126,1735645703737,-109.83908515,0.00025028,60]
[347270127,1735645709514,264.82,9.428e-05,2]
[347271821,1735645873801,1900.0,0.0002,120]
[347271822,1735645879731,-1000.0,0.00011308,2]
[347271823,1735645879740,-163.06,0.00011337,2]
[347271824,1735645879750,-250.0,0.00011368,2]
[347271825,1735645879759,-150.0,0.00011385,2]
[347271826,1735645879769,-386.94,0.00011447,2]
[347271827,1735645879781,-304.57,0.00011447,2]
[347271828,1735645879790,-250.0,0.00011499,2]
[347271829,1735645879800,-685.35,0.00011706,2]
[347271830,1735645879809,-269.23,0.0001188,2]
[347271831,1735645879819,-107.043997,0.00012,2]
[347271832,1735645879830,-342.956003,0.00012,2]
[347271833,1735645879839,-6057.043997,0.0001218,2]
[347271834,1735645879850,-585.04,0.0001218,2]
[347271835,1735645879861,-7780.23843371,0.0001218,2]
[347271836,1735645879944,-404.92261432,0.0001218,2]
[347271837,1735645879956,-2100.0,0.0001218,2]
[347271838,1735645879967,-19705.6,0.0001218,2]
[347271839,1735645879978,-5542.58015884,0.0001218,2]
[347271840,1735645879992,-4712.01488347,0.0001218,2]
[347271841,1735645880003,-2306.86545097,0.0001218,2]
[347271842,1735645880014,-1305.49139509,0.0001218,2]
[347271843,1735645880029,-1259.99999995,0.0001218,2]
[347271844,1735645880073,-342955.7014007,0.0001218,2]
[347271845,1735645880084,-82982.30086997,0.0001218,2]
[347271846,1735645880095,-4767.4,0.0001218,2]
[347271847,1735645880138,-3026.48911653,0.0001218,2]
[347271848,1735645880149,-342.527592,0.0001218,2]
[347271849,1735645880161,-720.52065708,0.0001218,2]
[347271850,1735645880172,-742.13376164,0.0001218,2]
[347271851,1735645880295,-1666.75681614,0.0001218,2]
[347271852,1735645882638,-7248.94451127,0.0001218,2]
[347271853,1735645882648,-150.0,0.00012198,2]
[347271854,1735645882658,-164.34168628,0.0001222,2]
[347271855,1735645882668,-159.583,0.0001226,2]
[347271856,1735645882677,-1784.894,0.0001226,2]
[347271857,1735645882687,-21680.05307693,0.00012278,2]
[347271858,1735645882697,-35510.1614,0.00012279,2]
[347271859,1735645882706,-32360.9135,0.0001228,2]
[347271860,1735645882716,-500.0,0.0001228,2]
[347271861,1735645882726,-166.61241008,0.0001228,2]
[347271862,1735645882735,-315.93534407,0.0001228,2]
[347271863,1735645882744,-164.34168627,0.0001228,2]
[347271864,1735645882754,-500.0,0.00012299,2]
[347271865,1735645882763,-166.48647042,0.00012299,2]
[347271866,1735645882773,-574.51957173,0.00012299,2]
[347271867,1735645882782,-500.0,0.00012299,2]
[347271868,1735645882792,-500.0,0.00012299,2]
[347271869,1735645882801,-500.0,0.00012299,2]
[347271870,1735645882811,-500.0,0.00012299,2]
[347271871,1735645882821,-500.0,0.00012299,2]
[347271872,1735645882830,-390.63887094,0.00012299,2]
[347271873,1735645882840,-500.0,0.00012299,2]
[347271874,1735645882849,-500.0,0.00012299,2]
[347271875,1735645882858,-500.0,0.00012299,2]
[347271876,1735645882867,-500.0,0.00012299,2]
[347271877,1735645882877,-500.0,0.00012299,2]
[347271878,1735645882886,-500.0,0.00012299,2]
[347271879,1735645882895,-500.0,0.00012299,2]
[347271880,1735645882904,-499.99999999,0.00012299,2]
[347271881,1735645882914,-1000.0,0.000123,2]
[347271882,1735645882924,-1000.0,0.000123,3]
[347271883,1735645882934,-1000.0,0.000123,4]
[347271884,1735645882944,-1000.0,0.000123,5]
[347271885,1735645882954,-1000.0,0.000123,6]
[347271886,1735645882964,-1002.84,0.000123,7]
[347271887,1735645882974,-995040.2620826,0.000123,2]
[347271888,1735645882984,-668.0,0.0001232,2]
[347271889,1735645882993,-2003.15855401,0.0001237,2]
[347271890,1735645883002,-500.0,0.00012379,2]
[347271891,1735645883011,-1278.39785511,0.0001238,2]
[347271892,1735645883020,-111827.20640106,0.0001238,2]
[347271893,1735645883030,-7294578.89814523,0.0001238,2]
[347271894,1735645883044,-9579.81139119,0.0001238,2]
[347271895,1735645883055,-70614.1200004,0.0001238,2]
[347271896,1735645883067,-1018.0,0.0001238,2]
[347271897,1735645883079,-10366.37801371,0.0001238,2]
[347271898,1735645883090,-732.66465005,0.0001238,2]
[347271899,1735645883101,-500.0,0.0001238,2]
[347271900,1735645883113,-1131.32196698,0.0001238,2]
[347271901,1735645883124,-428.21118795,0.0001238,2]
[347271902,1735645883158,-573.45,0.0001238,2]
[347271903,1735645883169,-2608.14332056,0.0001238,2]
[347271904,1735645883180,-408.95014794,0.0001238,2]
[347271905,1735645883191,-1917.16,0.0001238,2]
[347271906,1735645883203,-20469.56654378,0.0001238,2]
[347271907,1735645883214,-963.20186772,0.0001238,2]
[347271908,1735645883836,-1779.64867746,0.0001238,2]
[347271909,1735645883848,-4019.09127962,0.0001238,2]
[347271910,1735645883858,-315.6,0.0001238,2]
[347271911,1735645883942,-707.37000039,0.0001238,2]
[347271912,1735645883954,-906.87582229,0.0001238,2]
[347271913,1735645883965,-646.57738469,0.0001238,2]
[347271914,1735645884017,-5598.22839874,0.0001238,2]
[347271915,1735645884029,-32294.9877599,0.0001238,2]
[347271916,1735645884041,-553.06899972,0.0001238,2]
[347271917,1735645885882,-2023.20647907,0.0001238,2]
[347271918,1735645887176,-4719.57656358,0.0001238,2]
[347271919,1735645887233,-9437.0,0.0001238,2]
[347271920,1735645887263,-471.225,0.0001238,2]
[347271921,1735645980356,15837.4762211,0.00011014,2]
[347271925,1735646326224,284.63,0.00010137,2]
[347271926,1735646418453,286.51,9.494e-05,2]
[347271927,1735646420576,5000.0,0.00011014,2]
[347271928,1735646443094,5000.0,0.00011014,2]
[347271931,1735646897208,23900.0,0.00010963,2]
[347271935,1735647006959,159.54948445,0.00011014,30]
[347271936,1735647010437,250.0,0.00011014,2]
[347271940,1735647034679,-150.0,0.00011121,2]
[347271941,1735647034688,-150.0,0.00011121,2]
[347271942,1735647034698,-150.0,0.00011121,2]
[347271943,1735647034707,-150.31379797,0.00011121,2]
[347271944,1735647034716,-150.53118525,0.00011121,2]
[347271945,1735647034727,-150.0,0.00011121,2]
[347271946,1735647034737,-150.0,0.00011203,2]
[347271947,1735647034747,-150.0,0.00011275,2]
[347271948,1735647034756,-45.53501678,0.00011285,2]
[347271949,1735647034768,-104.46498322,0.00011285,2]
[347271950,1735647034777,-150.0,0.00011326,2]
[347271951,1735647034786,-1000.0,0.00011338,2]
[347271952,1735647034796,-150.0,0.00011368,2]
[347271953,1735647034806,-250.0,0.00011382,2]
[347271954,1735647034815,-137.86201678,0.00011429,2]
[347271955,1735647034827,-12.13798322,0.00011429,2]
[347271956,1735647034837,-150.0,0.0001145,2]
[347271957,1735647034846,-422.72,0.00011509,2]
[347271958,1735647034856,-150.0,0.00011532,2]
[347271959,1735647034866,-150.0,0.00011532,2]
[347271960,1735647034876,-250.0,0.00011565,2]
[347271961,1735647034885,-92.27733658,0.00011584,2]
[347271962,1735647034899,-57.72266342,0.00011584,2]
[347271964,1735647034909,-150.0,0.00011615,2]
[347271966,1735647034919,-150.0,0.00011697,2]
[347271968,1735647034929,-300.0,0.00011737,2]
[347271970,1735647034939,-150.0,0.00011738,2]
[347271972,1735647034948,-150.0,0.00011738,2]
[347271974,1735647034958,-286.51,0.00011758,2]
[347271976,1735647034967,-269.205,0.0001176,2]
[347271977,1735647034979,-150.0,0.0001178,2]
[347271978,1735647034989,-168.01,0.00011835,2]
[347271979,1735647034999,-150.0,0.00011862,2]
[347271980,1735647035009,-150.0,0.00011893,2]
[347271982,1735647035019,-150.0,0.00011944,2]
[347271983,1735647035029,-150.0,0.00011944,2]
[347271985,1735647035039,-2657.68742041,0.00012,2]
[347271991,1735647035073,-500.0,0.00012,2]
[347271992,1735647035084,-6537.30503197,0.00012,2]
[347271993,1735647035093,-150.0,0.00012027,2]
[347271994,1735647035103,-150.0,0.00012047,2]
[347271995,1735647035112,-551.65113492,0.00012063,2]
[347271996,1735647035122,-500.0,0.0001208,2]
[347271997,1735647035131,-150.0,0.00012109,2]
[347271998,1735647035141,-551.65113491,0.00012135,2]
[347271999,1735647035150,-150.0,0.0001215,2]
[347272000,1735647035160,-12959.73684719,0.00012162,2]
[347272001,1735647035172,-21587.76406596,0.00012162,2]
[347272002,1735647035181,-46418.81625108,0.00012163,2]
[347272003,1735647035191,-150.0,0.00012191,2]
[347272004,1735647035201,-150.0,0.00012192,2]
[347272005,1735647035211,-498.193,0.00012198,2]
[347272006,1735647035220,-150.0,0.00012202,2]
[347272007,1735647035230,-551.65113491,0.00012208,2]
[347272008,1735647035240,-151.0,0.00012272,2]
[347272009,1735647035250,-150.0,0.00012274,2]
[347272010,1735647035260,-886.9544,0.0001228,2]
[347272011,1735647035269,-60116.0336,0.0001228,2]
[347272012,1735647035279,-166.61241005,0.0001228,2]
[347272013,1735647035289,-157.96767201,0.0001228,2]
[347272014,1735647035299,-248.9107192,0.0001228,2]
[347272015,1735647035309,-5000.0,0.0001228,2]
[347272016,1735647035319,-551.65113491,0.0001228,2]
[347272017,1735647035328,-657.36674506,0.0001228,2]
[347272018,1735647035338,-1180.32628816,0.0001228,2]
[347272019,1735647035348,-1507.63138578,0.0001228,2]
[347272020,1735647035357,-500.0,0.00012299,2]
[347272021,1735647035367,-1102.0,0.000123,2]
[347272022,1735647035376,-1102.0,0.000123,2]
[347272023,1735647035386,-1102.0,0.000123,2]
[347272024,1735647035395,-1102.0,0.000123,2]
[347272025,1735647035405,-1102.0,0.000123,2]
[347272026,1735647035414,-1102.0,0.000123,2]
[347272027,1735647035424,-1102.0,0.000123,2]
[347272028,1735647035434,-1102.0,0.000123,2]
[347272029,1735647035442,-1102.0,0.000123,2]
[347272030,1735647035452,-1102.0,0.000123,2]
[347272031,1735647035461,-500.0,0.00012326,2]
[347272032,1735647035471,-500.0,0.00012354,2]
[347272033,1735647035481,-150.0,0.00012356,2]
[347272034,1735647035491,-150.0,0.00012356,2]
[347272035,1735647035500,-150.0,0.00012356,2]
[347272036,1735647035510,-150.00000001,0.00012356,2]
[347272037,1735647035519,-500.0,0.00012373,2]
[347272038,1735647035529,-500.0,0.00012373,2]
[347272039,1735647035539,-500.0,0.00012373,2]
[347272040,1735647035549,-500.0,0.00012379,2]
[347272041,1735647035558,-265.62654122,0.00012379,2]
[347272042,1735647035568,-498.37823378,0.00012379,2]
[347272043,1735647035578,-405.11070351,0.00012379,2]
[347272044,1735647035587,-244.3520467,0.00012379,2]
[347272045,1735647035596,-5000.0,0.00012379,2]
[347272046,1735647035606,-389.04751112,0.00012379,2]
[347272047,1735647035617,-380.1886,0.00012379,2]
[347272048,1735647035626,-593.61,0.00012379,2]
[347272049,1735647035636,-7500.0,0.00012379,2]
[347272050,1735647035646,-7500.0,0.00012379,2]
[347272051,1735647035655,-7500.0,0.00012379,2]
[347272052,1735647035665,-7500.0,0.00012379,2]
[347272053,1735647035675,-7500.0,0.00012379,2]
[347272054,1735647035685,-1690.03953919,0.00012379,2]
[347272055,1735647035694,-680.0,0.0001238,2]
[347272056,1735647035703,-1391.5480219,0.0001238,2]
[347272057,1735647035712,-30301.83831516,0.0001238,2]
[347272058,1735647035737,-34698.35925284,0.0001238,2]
[347272059,1735647035770,-28749.14088167,0.0001238,2]
[347272060,1735647035836,-999.992,0.0001238,2]
[347272061,1735647035847,-8739.28065605,0.0001238,2]
[347272062,1735647035885,-1361.54758258,0.0001238,2]
[347272063,1735647035897,-66254.69622634,0.0001238,2]
[347272064,1735647035909,-3101.22842254,0.0001238,2]
[347272065,1735647035920,-2176.09119283,0.0001238,2]
[347272070,1735647038075,-1050.47406241,0.00012132,2]
[347272071,1735647038086,-5641.2541658,0.0001238,2]
[347272072,1735647038096,-15695.47658742,0.0001238,2]
[347272073,1735647038108,-4200.0,0.0001238,2]
[347272074,1735647038119,-3103.57100234,0.0001238,2]
[347272075,1735647038198,-23622.260625,0.0001238,2]
[347272076,1735647038227,-7410855.66095541,0.0001238,2]
[347272244,1735647039886,-2829.42,0.0001238,2]
[347272246,1735647039898,-450.015,0.0001238,2]
[347272262,1735647040048,-303.53625001,0.0001238,2]
[347272264,1735647040059,-2515.93002921,0.0001238,2]
[347272267,1735647040071,-1215.03383588,0.0001238,2]
[347272272,1735647040117,-1353.23790222,0.0001238,2]
[347272274,1735647040129,-2200.45424,0.0001238,2]
[347272278,1735647040158,-455.09448285,0.0001238,2]
[347272281,1735647040168,-3757.89943146,0.0001238,2]
[347272283,1735647040179,-1942.37721319,0.0001238,2]
[347272287,1735647040210,-14881449.9761773,0.0001238,2]
[347272579,1735647043131,-422.30216206,0.00012,2]
[347272588,1735647043211,-27.69783794,0.00012,2]
[347272591,1735647043221,-341.42486414,0.0001238,2]
[347272593,1735647043232,-1178.84352703,0.0001238,2]
[347272595,1735647043245,-468.649,0.0001238,2]
[347272597,1735647043256,-1356.27907814,0.0001238,2]
[347272599,1735647043268,-1509.09021663,0.0001238,2]
[347272616,1735647043418,-272767.75298198,0.0001238,2]
[347272619,1735647043430,-893705.29088927,0.0001238,2]
[347272882,1735647046026,-2757.92484696,0.0001238,2]
[347272913,1735647046316,-1320.27201939,0.0001238,2]
[347273106,1735647652254,274.38,9.719e-05,2]
[347273107,1735648031177,216.64,0.00010137,2]
[347273133,1735648232221,-154.13,0.00011302,2]
[347273134,1735648232231,-154.13,0.00011305,2]
[347273135,1735648232240,-154.13,0.00011308,2]
[347273136,1735648232249,-154.13,0.00011312,2]
[347273137,1735648232259,-154.13,0.00011315,2]
[347273138,1735648232268,-154.13,0.00011318,2]
[347273139,1735648232277,-154.13,0.00011322,2]
[347273140,1735648232287,-154.13,0.00011325,2]
[347273141,1735648232296,-154.13,0.00011328,2]
[347273142,1735648232305,-154.13,0.00011332,2]
[347273143,1735648232314,-154.13,0.00011335,2]
[347273144,1735648232324,-154.13,0.00011338,2]
[347273145,1735648232333,-154.13,0.00011342,2]
[347273146,1735648232343,-250.0,0.00011344,2]
[347273147,1735648232353,-154.13,0.00011345,2]
[347273148,1735648232362,-154.13,0.00011348,2]
[347273149,1735648232372,-154.13,0.00011352,2]
[347273150,1735648232381,-154.13,0.00011355,2]
[347273151,1735648232390,-154.13,0.00011358,2]
[347273152,1735648232400,-574.93,0.00011398,2]
[347273153,1735648232409,-281.81,0.00011431,2]
[347273154,1735648232418,-2100.0,0.00011537,2]
[347273155,1735648232427,-1000.0,0.00011544,2]
[347273156,1735648232436,-553.2,0.00011683,2]
[347273157,1735648232446,-258.283,0.0001176,2]
[347273158,1735648232455,-657.7079,0.000118,2]
[347273159,1735648232464,-300.0,0.00011899,2]
[347273160,1735648232474,-77184.28244932,0.000119,2]
[347273161,1735648232485,-1214353.87117454,0.000119,2]
[347273203,1735648233032,-1500.0,0.000119,2]
[347273426,1735648238281,-853.5768437,0.000119,2]
[347273427,1735648238293,-417.98,0.000119,2]
[347273428,1735648238400,-472.83,0.000119,2]
[347273429,1735648238486,-682203.78109976,0.000119,2]
[347273430,1735648238495,-505114.28363542,0.0001198,2]
[347273431,1735648238505,-274.38,0.00011983,2]
[347273432,1735648238515,-24918.0,0.00012,2]
[347273433,1735648238524,-217.04,0.0001206,2]
[347273434,1735648238533,-187.197182,0.00012107,2]
[347273435,1735648238543,-1616.962,0.00012132,2]
[347273436,1735648238552,-159.583,0.00012132,2]
[347273437,1735648238561,-636.0,0.00012236,2]
[347273439,1735648238570,-166.61241005,0.0001228,2]
[347273441,1735648238579,-157.96767201,0.0001228,2]
[347273443,1735648238588,-5000.0,0.0001228,2]
[347273445,1735648238597,-157.96767201,0.0001234,2]
[347273447,1735648238607,-152.0263011,0.00012373,2]
[347273449,1735648238616,-14058.36842187,0.00012379,2]
[347273451,1735648238626,-568.87,0.00012379,2]
[347273453,1735648238635,-500.0,0.00012379,2]
[347273455,1735648238647,-566.0,0.0001238,2]
[347273457,1735648238660,-695.77401095,0.0001238,2]
[347273459,1735648238669,-91011.71434791,0.0001238,2]
[347273461,1735648238679,-1179724.42289494,0.0001238,2]
[347273463,1735648238688,-5894133.32166742,0.0001238,2]
[347273605,1735648240140,-1038.12363104,0.0001238,2]
[347273608,1735648240152,-530.655,0.0001238,2]
[347273662,1735648240736,-3252.53755311,0.0001238,2]
[347273665,1735648240748,-731.31115522,0.0001238,2]
[347273671,1735648240795,-1165.35320515,0.0001238,2]
[347273675,1735648240826,-6798.66854012,0.0001238,2]
[347273677,1735648240837,-340.78499998,0.0001238,2]
[347273684,1735648240953,-1869.18,0.0001238,2]
[347273685,1735648241000,-656.14,0.0001238,2]
[347273692,1735648243187,-8904.5188215,0.0001238,2]
[347273693,1735648243298,-4479.20749108,0.0001238,2]
[347273694,1735648243309,-458.00134583,0.0001238,2]
[347273695,1735648243356,-385.6032014,0.0001238,2]
[347273696,1735648243367,-284.3,0.0001238,2]
[347273697,1735648243378,-3191.0,0.0001238,2]
[347273698,1735648243389,-452.9,0.0001238,2]
[347273699,1735648243400,-428.9,0.0001238,2]
[347273700,1735648243413,-1723.09854879,0.0001238,2]
[347273701,1735648243424,-9472.5696152,0.0001238,2]
[347273702,1735648243435,-1558.32946893,0.0001238,2]
[347273703,1735648243446,-273.88727203,0.0001238,2]
[347273704,1735648243457,-4791.17830158,0.0001238,2]
[347273705,1735648243468,-2949.2644519,0.0001238,2]
[347273706,1735648243479,-975.06641355,0.0001238,2]
[347273707,1735648243490,-2902.199811,0.0001238,2]
[347273708,1735648243500,-2829.18561165,0.0001238,2]
[347273829,1735648246337,-1518.93905104,0.0001238,2]
[347273830,1735648246350,-29504.47827361,0.0001238,2]
[347273835,1735648246943,-104.12705273,0.0001238,2]
[347273836,1735648246954,-261.7216164,0.0001238,2]
[347273837,1735648246965,-692.13336901,0.0001238,2]
[347273840,1735648545245,336.53,9.625e-05,2]
[347273841,1735648600658,-164.79,0.00011473,2]
[347273842,1735648600682,-250.0,0.00011508,2]
[347273843,1735648600709,-521.73,0.00011595,2]
[347273844,1735648600733,-1852.42,0.00011595,2]
[347273845,1735648628135,7634.39772481,0.00011472,2]
[347273846,1735648669639,19911.06,0.00011569,2]
[347273847,1735648807135,1000.0,0.00011542,2]
[347273848,1735648812103,21660.4784122,0.0002,120]
[347273849,1735649001973,1330.6756669,0.00011,2]
[347273850,1735649013592,250.0,0.00011498,2]
[347273851,1735649103595,270.39,0.00010137,2]
[347273852,1735649113618,150.0,0.00011121,2]
[347273853,1735649115370,150.57740111,0.00011121,2]
[347273855,1735649239234,1098.14,0.00011423,2]
[347273857,1735649353676,150.0,0.00011554,2]
[347273858,1735649380698,442.56,0.00011504,2]
[347273863,1735649401344,397.82,0.00011477,2]
[347273875,1735649432491,-3185.74143313,0.0001166,2]
[347273876,1735649432500,-247.346,0.0001176,2]
[347273877,1735649432510,-150.0,0.00011863,2]
[347273878,1735649432519,-15.64791687,0.00011889,2]
[347273879,1735649432582,-320.88208313,0.00011889,2]
[347273880,1735649432591,-65.78391687,0.00011997,2]
[347273881,1735649432679,-234.21608313,0.00011997,2]
[347273882,1735649432689,-500.0,0.00011998,2]
[347273883,1735649432699,-9383.2,0.00011998,2]
[347273884,1735649432708,-450.0,0.00012,2]
[347273885,1735649432718,-10716.90867212,0.00012,2]
[347273886,1735649432729,-387.0,0.00012,2]
[347273887,1735649432740,-507.959,0.00012,2]
[347273892,1735649433130,-8388.13232788,0.00012,2]
[347273893,1735649433140,-500.0,0.00012026,2]
[347273894,1735649433150,-500.0,0.00012053,2]
[347273895,1735649433160,-18867.54735357,0.000121,2]
[347273904,1735649438812,-1132.45264643,0.000121,2]
[347273905,1735649438822,-151.65,0.00012174,2]
[347273906,1735649438831,-25544.34192395,0.000122,2]
[347273907,1735649438840,-157.96767201,0.0001228,2]
[347273908,1735649438850,-152.0263011,0.00012373,2]
[347273909,1735649438859,-1293.569,0.00012379,2]
[347273910,1735649438868,-159.583,0.00012379,2]
[347273911,1735649438877,-695.77401095,0.0001238,2]
[347273912,1735649438886,-91144.7331479,0.0001238,2]
[347273913,1735649438895,-4129557.05898501,0.0001238,2]
[347273914,1735649438904,-1000.0,0.0001238,2]
[347273915,1735649438913,-2928778.20830404,0.0001238,2]
[347273916,1735649439102,-11484.47705012,0.0001238,2]
[347273917,1735649439181,-1111.86041366,0.0001238,2]
[347273920,1735649440397,-17039.99999998,0.0001238,2]
[347273921,1735649440408,-47388.5,0.0001238,2]
[347273951,1735649440915,-4299.13506091,0.0001238,2]
[347273953,1735649440926,-7499.32450736,0.0001238,2]
[347273997,1735649443552,-821.02511981,0.0001238,2]
[347273998,1735649446389,-2645.12777082,0.0001238,2]
[347273999,1735649446446,-2816.50504784,0.0001238,2]
[347274000,1735649446458,-6401.99999999,0.0001238,2]
[347274001,1735649446469,-384.111,0.0001238,2]
[347274002,1735649446513,-263883.84280107,0.0001238,2]
[347274003,1735649446609,-1648.3540861,0.0001238,2]
[347274004,1735649446664,-281.00881241,0.0001238,2]
[347274005,1735649447614,-1957.704,0.0001238,2]
[347274006,1735649463729,336.79,0.00010124,2]
[347274008,1735649718864,1000.0,0.00011529,2]
[347274012,1735649866481,4561.31766834,0.0001235,10]
[347274013,1735649946939,2000.0,0.00011564,2]
[347274015,1735650115016,162.87,0.00010137,2]
[347274016,1735650158869,250.0,0.00011413,2]
[347274017,1735650208563,250.0,0.00011431,2]
[347274018,1735650211077,150.0,0.00011431,2]
[347274020,1735650302363,200.0,0.00011393,2]
[347274021,1735650309288,150.0,0.00011121,2]
[347274022,1735650376927,631.95,0.00011401,2]
[347274023,1735650391952,316.45,0.00011416,2]
[347274024,1735650392197,316.45,0.00011419,2]
[347274025,1735650392594,316.45,0.00011422,2]
[347274026,1735650392806,316.45,0.00011426,2]
[347274027,1735650392997,316.45,0.00011429,2]
[347274028,1735650393241,316.45,0.00011432,2]
[347274029,1735650393427,316.45,0.00011435,2]
[347274030,1735650393632,316.45,0.00011438,2]
[347274031,1735650393846,316.45,0.00011441,2]
[347274032,1735650394382,316.45,0.00011444,2]
[347274033,1735650395185,316.45,0.00011447,2]
[347274034,1735650395332,316.45,0.0001145,2]
[347274035,1735650395485,316.45,0.00011453,2]
[347274036,1735650395632,316.45,0.00011456,2]
[347274037,1735650395806,316.45,0.00011459,2]
[347274038,1735650395941,316.45,0.00011462,2]
[347274039,1735650396072,316.45,0.00011465,2]
[347274040,1735650396544,316.45,0.00011468,2]
[347274041,1735650396702,316.45,0.00011471,2]
[347274042,1735650396941,316.45,0.00011474,2]
[347274043,1735650424844,23890.0,0.00011447,2]
[347274044,1735650501010,250.0,0.00011488,2]
[347274045,1735650519819,337.2,9.627e-05,2]
[347274046,1735650586003,607.76,0.00011515,2]
[347274051,1735650631596,-553.55,0.0001161,2]
[347274052,1735650631606,-504.5,0.00011725,2]
[347274053,1735650631615,-236.763,0.0001176,2]
[347274054,1735650631624,-168.01,0.00011774,2]
[347274055,1735650631633,-337.2,0.0001189,2]
[347274056,1735650631644,-292.977,0.00011892,2]
[347274057,1735650631659,-2961.68635478,0.00011892,2]
[347274132,1735650632676,-10045.96420378,0.00011892,2]
[347274135,1735650632688,-62114.37244144,0.00011892,2]
[347274137,1735650632699,-163.53,0.00011952,2]
[347274139,1735650632708,-2000.67809248,0.00012,2]
[347274141,1735650632717,-500.0,0.00012,2]
[347274143,1735650632726,-330.58636792,0.00012173,2]
[347274145,1735650632736,-2908.03654,0.0001226,2]
[347274147,1735650632746,-2908.03654,0.0001226,2]
[347274148,1735650632755,-2500.0,0.0001228,2]
[347274150,1735650632764,-2500.0,0.0001228,2]
[347274153,1735650632774,-157.96767201,0.0001228,2]
[347274154,1735650632783,-159.583,0.000123,2]
[347274157,1735650632792,-1293.569,0.000123,2]
[347274158,1735650632802,-35989.172879,0.000123,2]
[347274161,1735650632811,-876.45909993,0.000123,2]